bitfinex/quotes_SOLUSD_20250107
["timestamp","ask_amount","ask_price","bid_price","bid_amount"]
[1736280772088,23.902374,203.76,203.69,2.07901437]
[1736280772288,0.12549,203.72,203.67,2.04101437]
[1736280772491,0.12549,203.72,203.65,2.04101437]
[1736280772697,0.12549,203.72,203.67,2.04101437]
[1736280774194,0.12549,203.72,203.65,2.04101437]
[1736280774408,20.0,203.75,203.67,2.04101437]
[1736280774794,20.12549,203.74,203.67,2.04101437]
[1736280775307,0.12549,203.73,203.67,2.04101437]
[1736280775890,23.902374,203.73,203.65,2.04101437]
[1736280776091,0.12549,203.69,203.61,8.63161437]
[1736280776293,0.12549,203.65,203.61,6.5906]
[1736280776485,0.12549,203.65,203.6,1.533]
[1736280776684,0.12549,203.65,203.61,2.04101437]
[1736280776881,0.12549,203.65,203.62,2.04101437]
[1736280777293,22.92,203.7,203.62,2.04101437]
[1736280777795,0.12549,203.69,203.64,2.04101437]
[1736280777989,0.12549,203.69,203.66,2.04101437]
[1736280778191,2.92,203.74,203.66,2.04101437]
[1736280778405,2.92,203.74,203.68,2.04101437]
[1736280778893,54.02384794,203.78,203.7,2.04101437]
[1736280779100,0.12549,203.77,203.7,2.04101437]
[1736280779315,53.12710672,203.78,203.7,2.04101437]
[1736280779701,20.0,203.75,203.7,2.04101437]
[1736280780216,0.12549,203.74,203.7,2.04101437]
[1736280781893,1.96635887,203.8,203.74,2.04101437]
[1736280782096,2.92,203.81,203.74,2.04101437]
[1736280782307,0.12549,203.76,203.74,2.04101437]
[1736280782823,12.07449566,203.86,203.76,2.04101437]
[1736280783312,0.12549,203.85,203.76,2.04101437]
[1736280783492,53.0798882,203.87,203.79,2.04101437]
[1736280783693,0.12549,203.83,203.79,2.04101437]
[1736280784801,0.12549,203.82,203.79,2.04101437]
[1736280785009,0.12549,203.79,203.78,1.5264]
[1736280785512,20.0,203.84,203.78,1.5264]
[1736280786020,0.12549,203.79,203.78,1.5264]
[1736280786210,0.12549,203.79,203.77,6.5783]
[1736280786415,0.12549,203.79,203.75,2.04101437]
[1736280787408,23.902374,203.79,203.75,2.04101437]
[1736280787609,23.902374,203.79,203.73,3.67371437]
[1736280787814,23.902374,203.79,203.73,1.6327]
[1736280787996,23.902374,203.79,203.74,2.04101437]
[1736280788189,23.902374,203.79,203.73,1.6327]
[1736280788393,0.12549,203.73,203.71,2.04101437]
[1736280789532,2.92,203.81,203.71,2.04101437]
[1736280789828,2.92,203.81,203.73,2.04101437]
[1736280790334,0.12549,203.76,203.73,2.04101437]
[1736280790628,0.12549,203.76,203.75,2.04101437]
[1736280790829,54.6476546,203.87,203.75,2.04101437]
[1736280791002,54.6476546,203.87,203.68,31.13384507]
[1736280791003,55.9625546,203.87,203.77,2.04101437]
[1736280791202,55.9625546,203.87,203.79,2.04101437]
[1736280791418,51.07954825,203.87,203.81,2.04101437]
[1736280791832,51.07954825,203.87,203.83,2.04101437]
[1736280791990,20.0,203.84,203.83,2.04101437]
[1736280792195,20.12549,203.84,203.83,2.04101437]
[1736280792593,0.12549,203.84,203.83,2.04101437]
[1736280792796,0.12549,203.83,203.81,2.04101437]
[1736280792997,0.12549,203.86,203.81,2.04101437]
[1736280793299,0.12549,203.86,203.79,2.04101437]
[1736280793532,0.12549,203.86,203.78,1.5159]
[1736280793533,0.12549,203.82,203.78,1.5159]
[1736280793823,20.0,203.83,203.75,2.04101437]
[1736280793824,0.12549,203.78,203.75,2.04101437]
[1736280795446,0.12549,203.78,203.77,2.04101437]
[1736280796736,20.0,203.86,203.77,2.04101437]
[1736280797040,0.12549,203.83,203.77,2.04101437]
[1736280797257,0.12549,203.83,203.79,2.04101437]
[1736280797536,0.12549,203.85,203.79,2.04101437]
[1736280797753,0.12549,203.85,203.81,2.04101437]
[1736280798240,20.12549,203.85,203.81,2.04101437]
[1736280801243,20.12549,203.85,203.79,2.04101437]
[1736280801542,20.12549,203.85,203.81,2.04101437]
[1736280803140,1.9641995,203.89,203.81,2.04101437]
[1736280803313,2.9,203.9,203.81,2.04101437]
[1736280803513,0.12549,203.86,203.83,2.04101437]
[1736280804256,0.12549,203.88,203.83,2.04101437]
[1736280804434,0.12549,203.88,203.83,3.69741437]
[1736280804741,1.94989536,203.92,203.85,2.04101437]
[1736280804922,0.12549,203.88,203.85,2.04101437]
[1736280809649,37.23693757,203.93,203.85,2.04101437]
[1736280809850,0.12549,203.89,203.85,2.04101437]
[1736280810425,0.12549,203.89,203.87,2.04101437]
[1736280811557,2.9,203.97,203.89,2.04101437]
[1736280811848,23.902374,203.98,203.89,2.04101437]
[1736280812045,7.9,204.02,203.91,2.04101437]
[1736280812223,20.0,203.98,203.91,2.04101437]
[1736280812431,0.12549,203.97,203.91,2.04101437]
[1736280813148,35.20048254,204.02,203.93,2.04101437]
[1736280813651,35.20048254,204.02,203.95,2.04101437]
[1736280813954,20.12549,203.98,203.93,2.04101437]
[1736280814250,20.12549,203.98,203.95,2.04101437]
[1736280815941,20.12549,203.98,203.93,2.04101437]
[1736280816139,20.12549,203.98,203.92,1.5469]
[1736280816340,2.9,203.97,203.78,10.0]
[1736280816655,20.0,203.89,203.79,6.0987]
[1736280816857,0.12549,203.88,203.79,6.0987]
[1736280817150,0.12549,203.84,203.79,6.0987]
[1736280820252,2.9,203.89,203.79,6.0987]
[1736280821764,0.12549,203.88,203.79,6.0987]
[1736280824545,1.93864026,203.92,203.81,5.0]
[1736280824734,2.9,203.96,203.81,5.0]
[1736280824935,2.9,203.96,203.82,23.776884]
[1736280825163,0.12549,203.95,203.84,12.9213]
[1736280825744,0.12549,203.95,203.84,7.9213]
[1736280826075,0.12549,203.95,203.84,12.9213]
[1736280826366,0.12549,203.98,203.84,12.9213]
[1736280827061,2.9,204.0,203.84,12.9213]
[1736280827365,20.12549,203.97,203.84,12.9213]
[1736280829363,37.17043808,204.02,203.86,5.0]
[1736280829661,37.17043808,204.02,203.88,34.49424507]
[1736280829662,35.20048254,204.02,203.88,34.49424507]
[1736280829881,35.20048254,204.02,203.89,25.415284]
[1736280830255,0.12549,204.01,203.89,25.415284]
[1736280830564,0.12549,203.98,203.89,1.6384]
[1736280830749,20.12549,203.98,203.89,1.6384]
[1736280836984,35.20048254,204.02,203.89,1.6384]
[1736280837555,35.20048254,204.02,203.89,30.415284]
[1736280837556,0.12549,204.01,203.89,30.415284]
[1736280838455,0.12549,204.01,203.9,23.776884]
[1736280839073,20.0,203.99,203.89,1.6384]
[1736280841452,20.0,203.99,203.89,25.415284]
[1736280841655,20.0,203.99,203.9,23.776884]
[1736280841869,20.0,203.99,203.89,29.85224507]
[1736280842063,20.0,203.99,203.9,23.776884]
[1736280844052,20.0,203.99,203.89,30.415284]
[1736280844258,20.0,203.99,203.9,23.776884]
[1736280846186,0.12549,204.04,203.9,23.776884]
[1736280846360,0.12549,204.04,203.91,5.0]
[1736280846671,2.9,204.1,203.95,1.6055]
[1736280846865,20.0,204.08,203.95,1.6055]
[1736280847084,4.89108012,204.1,203.95,1.6055]
[1736280847289,0.12549,204.06,203.95,1.6055]
[1736280848189,0.12549,204.09,203.95,1.6055]
[1736280848892,0.12549,204.06,203.95,1.6055]
[1736280849391,0.12549,204.06,203.96,28.776884]
[1736280849562,1.6179,204.11,203.98,28.776884]
[1736280849767,160.02007494,204.13,203.98,51.99072907]
[1736280849974,0.12549,204.09,203.98,28.776884]
[1736280850286,0.12549,204.09,203.98,52.72570689]
[1736280850466,160.02007494,204.13,203.98,29.51186182]
[1736280850663,0.12549,204.12,203.98,28.776884]
[1736280850858,20.0,204.09,203.95,29.81934507]
[1736280851063,0.12549,204.08,203.95,1.6055]
[1736280851895,23.902374,204.08,203.95,1.6055]
[1736280852077,0.12549,204.04,203.95,1.6055]
[1736280852768,20.0,204.07,203.95,1.6055]
[1736280853505,1.6183,204.12,203.96,23.776884]
[1736280853678,20.0,204.1,203.96,46.99072907]
[1736280853861,20.0,204.1,203.96,47.72578068]
[1736280854297,0.12549,204.09,203.97,29.58549]
[1736280854502,0.12549,204.09,203.98,23.776884]
[1736280855308,0.12549,204.11,203.98,23.776884]
[1736280855467,0.12549,204.11,203.98,24.51187317]
[1736280855790,0.12549,204.09,203.98,24.51187317]
[1736280856997,0.12549,204.09,203.98,47.72571824]
[1736280863219,0.12549,204.09,203.98,24.51187317]
[1736280863520,0.12549,204.09,203.95,1.6055]
[1736280863815,0.12549,204.05,203.95,1.6055]
[1736280866311,20.0,204.1,203.96,24.51203621]
[1736280866498,20.0,204.1,203.97,23.21384507]
[1736280867114,0.12549,204.09,203.96,23.776884]
[1736280867689,0.12549,204.09,203.96,46.99072907]
[1736280867891,0.12549,204.09,203.98,28.776884]
[1736280868223,0.12549,204.09,203.98,51.99072907]
[1736280868528,0.12549,204.09,203.95,2.34057786]
[1736280868822,1.6183,204.12,204.02,23.21384507]
[1736280869221,1.6183,204.12,204.03,23.21384507]
[1736280869424,0.12549,204.11,204.04,14.42123676]
[1736280869590,0.12549,204.11,204.02,24.51174318]
[1736280869591,0.12549,204.11,204.05,14.42123676]
[1736280869791,1.6352,204.17,204.05,14.42123676]
[1736280870019,1.6352,204.17,204.03,11.0968]
[1736280870020,0.12549,204.16,204.04,23.776884]
[1736280870225,0.12549,204.16,204.03,20.51803676]
[1736280870787,0.12549,204.16,204.03,6.0968]
[1736280871193,0.12549,204.16,204.02,14.42123676]
[1736280871414,0.12549,204.12,204.01,2.88]
[1736280871922,0.12549,204.12,203.99,23.902374]
[1736280872125,0.12549,204.12,203.99,38.32361076]
[1736280872300,0.12549,204.12,203.99,38.19812076]
[1736280873721,0.12549,204.12,203.99,23.776884]
[1736280877821,0.12549,204.12,204.0,14.42123676]
[1736280878027,0.12549,204.12,204.01,14.42123676]
[1736280878322,0.12549,204.12,204.0,15.15620399]
[1736280878620,0.12549,204.12,204.0,0.73496723]
[1736280878798,0.12549,204.12,204.01,38.19812076]
[1736280879005,0.12549,204.12,204.01,23.776884]
[1736280879822,0.12549,204.12,204.02,14.42123676]
[1736280880021,0.12549,204.12,204.01,38.19812076]
[1736280880321,0.12549,204.12,204.01,23.06935732]
[1736280881730,0.12549,204.12,204.01,37.49059408]
[1736280882730,0.12549,204.12,204.01,23.06935732]
[1736280885699,0.12549,204.08,204.0,23.776884]
[1736280886157,0.12549,204.08,203.98,6.0968]
[1736280886302,1.69059,204.08,203.93,19.42123676]
[1736280886821,1.69059,204.08,203.94,23.902374]
[1736280887013,1.69059,204.08,203.94,0.12549]
[1736280887408,1.69059,204.08,203.93,19.42123676]
[1736280888950,1.69059,204.08,203.94,38.19812076]
[1736280889107,1.69059,204.08,203.94,23.776884]
[1736280891046,1.69059,204.08,203.93,28.902374]
[1736280891211,1.69059,204.08,203.93,43.32361076]
[1736280891557,21.69059,204.08,203.93,43.32361076]
[1736280893370,21.69059,204.08,203.95,14.42123676]
[1736280893730,21.69059,204.08,203.94,14.42123676]
[1736280893928,21.69059,204.08,203.93,38.32361076]
[1736280894131,21.69059,204.08,203.93,23.902374]
[1736280895867,0.12549,204.06,203.93,23.902374]
[1736280896195,0.12549,204.06,203.92,2.88]
[1736280896835,0.12549,204.06,203.92,17.30123676]
[1736280897037,0.12549,204.06,203.92,2.88]
[1736280897366,0.12549,204.02,203.92,2.88]
[1736280897567,0.12549,204.02,203.91,14.42123676]
[1736280898073,0.12549,203.98,203.89,5.0]
[1736280898232,0.12549,203.98,203.88,14.42123676]
[1736280898570,0.12549,203.98,203.89,23.902374]
[1736280899340,0.12549,203.98,203.89,0.12549]
[1736280899531,0.12549,203.98,203.88,38.32361076]
[1736280899760,0.12549,203.98,203.88,43.32361076]
[1736280899976,0.12549,203.98,203.87,23.37163676]
[1736280900298,1.5432,204.04,203.96,14.42123676]
[1736280900586,1.5432,204.04,203.97,14.42123676]
[1736280900755,20.12549,204.03,203.96,14.42123676]
[1736280901150,0.12549,204.03,203.98,14.42123676]
[1736280901567,0.12549,204.03,203.99,38.19812076]
[1736280901851,0.12549,204.03,203.95,2.88]
[1736280901852,0.12549,204.06,203.95,17.30123676]
[1736280902149,0.12549,204.03,203.95,26.656884]
[1736280902346,0.12549,204.03,203.95,2.88]
[1736280902559,0.12549,204.01,203.95,2.88]
[1736280902851,0.12549,204.01,203.92,23.902374]
[1736280903056,0.12549,204.01,203.92,44.05883976]
[1736280903280,0.12549,204.01,203.94,23.776884]
[1736280903455,0.12549,204.01,203.95,15.15640569]
[1736280903851,0.12549,204.01,203.96,43.19812076]
[1736280904672,0.12549,204.01,203.97,15.15630369]
[1736280904863,0.12549,204.01,203.96,28.776884]
[1736280905264,0.12549,204.01,203.96,43.19812076]
[1736280906575,20.0,204.04,203.97,14.54672676]
[1736280906764,20.0,204.04,203.98,38.19812076]
[1736280907078,20.0,204.04,203.99,38.19812076]
[1736280907376,0.12549,204.03,203.97,14.54672676]
[1736280907865,0.12549,204.03,203.97,14.42123676]
[1736280908185,0.12549,204.03,203.94,14.42123676]
[1736280908965,0.12549,204.03,203.95,38.19812076]
[1736280909459,0.12549,204.03,203.97,23.776884]
[1736280909666,0.12549,204.03,203.99,23.776884]
[1736280909859,0.12549,204.03,203.99,38.19812076]
[1736280910390,0.12549,204.03,203.99,23.776884]
[1736280910579,0.12549,204.03,203.97,14.42123676]
[1736280911585,0.12549,204.03,203.99,23.776884]
[1736280914591,0.12549,204.03,203.93,14.42123676]
[1736280914878,0.12549,204.03,203.92,150.72123676]
[1736280915099,0.12549,204.03,203.93,0.12549]
[1736280915904,0.12549,204.03,203.93,23.902374]
[1736280916196,0.12549,204.03,203.93,38.32361076]
[1736280917386,0.12549,204.03,203.96,14.42123676]
[1736280917590,0.12549,204.03,203.97,14.42123676]
[1736280918198,0.12549,204.03,203.96,23.776884]
[1736280918386,0.12549,204.03,203.9,5.0]
[1736280918593,0.12549,204.03,203.9,14.42123676]
[1736280918791,0.12549,204.03,203.89,14.42123676]
[1736280919512,0.12549,204.03,203.9,14.42123676]
[1736280919703,0.12549,204.03,203.93,14.42123676]
[1736280920014,0.12549,204.03,203.92,38.19812076]
[1736280920477,0.12549,204.03,203.92,23.776884]
[1736280920680,0.12549,204.03,203.93,14.42123676]
[1736280921086,0.12549,204.03,203.93,23.776884]
[1736280921688,0.12549,204.03,203.95,23.776884]
[1736280921892,0.12549,204.03,203.95,15.15638366]
[1736280922387,0.12549,204.03,203.94,14.42123676]
[1736280923079,1.6176,204.06,203.99,14.42123676]
[1736280923486,0.12549,204.03,203.99,14.42123676]
[1736280923688,0.12549,204.03,203.97,38.19812076]
[1736280923888,0.12549,204.03,203.98,14.42123676]
[1736280924811,0.12549,204.03,203.99,14.42123676]
[1736280925711,1.6176,204.06,204.01,14.42123676]
[1736280926238,0.12549,204.05,204.01,14.42123676]
[1736280926909,0.12549,204.08,204.01,14.42123676]
[1736280927382,0.12549,204.08,204.02,15.15616664]
[1736280927582,0.12549,204.08,204.03,14.42123676]
[1736280928706,1.5068,204.11,204.05,14.42123676]
[1736280928927,7.57359666,204.16,204.08,38.19812076]
[1736280928928,9.10009666,204.16,204.08,38.19812076]
[1736280929211,0.12549,204.15,204.08,23.776884]
[1736280930011,0.12549,204.13,204.08,14.42123676]
[1736280930322,0.12549,204.13,204.08,23.776884]
[1736280930811,0.12549,204.13,204.09,14.42123676]
[1736280931197,0.12549,204.13,204.08,14.42123676]
[1736280931908,0.12549,204.13,204.09,14.42123676]
[1736280932121,0.12549,204.13,204.06,24.51157785]
[1736280932122,0.12549,204.13,204.08,14.42123676]
[1736280932409,0.12549,204.13,204.07,14.42123676]
[1736280932613,0.12549,204.13,204.05,14.42123676]
[1736280933009,0.12549,204.13,204.06,14.42123676]
[1736280933315,0.12549,204.13,204.06,38.19812076]
[1736280934320,0.12549,204.13,204.07,38.93286836]
[1736280934506,0.12549,204.13,204.08,14.42123676]
[1736280934696,0.12549,204.13,204.09,14.42123676]
[1736280934893,1.6185,204.21,204.11,14.42123676]
[1736280935107,0.12549,204.2,204.12,23.776884]
[1736280935307,0.12549,204.2,204.14,23.776884]
[1736280935602,20.12549,204.2,204.11,14.42123676]
[1736280936120,20.12549,204.2,204.11,23.776884]
[1736280936507,20.12549,204.2,204.11,38.19812076]
[1736280936817,1.5847,204.27,204.19,14.42123676]
[1736280937000,1.5847,204.27,204.22,14.42123676]
[1736280937202,0.12549,204.26,204.22,14.42123676]
[1736280937410,1.5847,204.27,204.23,14.42123676]
[1736280937612,1.5847,204.27,204.24,14.42123676]
[1736280937806,7.57359666,204.28,204.26,14.42123676]
[1736280938001,20.0,204.29,204.26,14.42123676]
[1736280938322,20.0,204.29,204.2,15.15542129]
[1736280938323,6.5061,204.36,204.25,14.42123676]
[1736280939013,0.12549,204.35,204.25,14.42123676]
[1736280939322,0.12549,204.32,204.24,14.42123676]
[1736280939817,6.5061,204.36,204.27,14.42123676]
[1736280940001,6.5061,204.36,204.29,14.42123676]
[1736280940518,0.12549,204.35,204.29,14.42123676]
[1736280941122,0.12549,204.36,204.29,14.42123676]
[1736280941502,0.12549,204.36,204.3,14.42123676]
[1736280941697,0.12549,204.36,204.27,14.42123676]
[1736280941904,0.12549,204.36,204.25,2.86]
[1736280943329,0.12549,204.36,204.29,14.42123676]
[1736280943625,0.12549,204.36,204.3,14.42123676]
[1736280945430,0.12549,204.36,204.29,14.42123676]
[1736280945611,0.12549,204.36,204.3,14.42123676]
[1736280946021,0.12549,204.36,204.26,2.86]
[1736280946230,0.12549,204.36,204.25,2.86]
[1736280946418,0.12549,204.36,204.21,14.42123676]
[1736280946714,0.12549,204.36,204.22,2.86]
[1736280947103,20.12549,204.32,204.21,2.86]
[1736280950326,20.12549,204.32,204.2,23.776884]
[1736280950534,0.12549,204.3,204.17,2.86]
[1736280950828,0.12549,204.3,204.13,20.62723676]
[1736280951027,0.12549,204.25,204.12,14.42123676]
[1736280951210,0.12549,204.25,204.13,2.86]
[1736280951413,0.12549,204.25,204.13,17.28123676]
[1736280951714,0.12549,204.25,204.14,38.19812076]
[1736280952436,0.12549,204.25,204.15,14.42123676]
[1736280953399,0.12549,204.25,204.14,23.776884]
[1736280954110,6.491,204.29,204.18,14.42123676]
[1736280954521,0.12549,204.28,204.18,23.776884]
[1736280955643,0.12549,204.28,204.18,14.42123676]
[1736280956729,0.12549,204.28,204.2,14.42123676]
[1736280957241,0.12549,204.28,204.19,14.42123676]
[1736280957811,0.12549,204.28,204.2,23.776884]
[1736280960559,0.12549,204.28,204.22,23.776884]
[1736280960729,21.5523,204.31,204.22,38.19812076]
[1736280960929,0.12549,204.3,204.22,38.19812076]
[1736280961138,0.12549,204.3,204.22,23.776884]
[1736280961563,0.12549,204.3,204.22,14.42123676]
[1736280961730,0.12549,204.3,204.22,23.776884]
[1736280962117,0.12549,204.3,204.21,23.776884]
[1736280962348,0.12549,204.3,204.18,14.42123676]
[1736280962549,0.12549,204.3,204.17,14.42123676]
[1736280962726,0.12549,204.3,204.19,14.42123676]
[1736280962925,0.12549,204.3,204.19,23.776884]
[1736280964233,0.12549,204.3,204.19,14.42123676]
[1736280964434,0.12549,204.3,204.23,38.19812076]
[1736280964743,0.12549,204.3,204.27,14.42123676]
[1736280964912,6.1114,204.34,204.27,14.42123676]
[1736280965118,6.1114,204.34,204.28,14.42123676]
[1736280965312,6.1114,204.34,204.29,14.42123676]
[1736280965313,0.12549,204.33,204.29,14.42123676]
[1736280966251,0.12549,204.35,204.28,23.776884]
[1736280967057,0.12549,204.35,204.29,14.42123676]
[1736280967224,0.12549,204.35,204.28,14.42123676]
[1736280968119,0.12549,204.35,204.29,14.42123676]
[1736280968745,0.12549,204.35,204.3,14.42123676]
[1736280969046,0.12549,204.35,204.29,14.42123676]
[1736280971027,0.12549,204.35,204.28,14.42123676]
[1736280971230,0.12549,204.35,204.26,14.42123676]
[1736280971538,0.12549,204.35,204.24,14.42123676]
[1736280971735,0.12549,204.35,204.22,17.28123676]
[1736280972042,0.12549,204.35,204.22,2.86]
[1736280972230,0.12549,204.35,204.25,14.42123676]
[1736280972425,0.12549,204.35,204.24,14.42123676]
[1736280973029,0.12549,204.35,204.23,14.42123676]
[1736280973234,0.12549,204.35,204.21,14.42123676]
[1736280973430,0.12549,204.35,204.22,23.776884]
[1736280973946,20.0,204.32,204.21,14.42123676]
[1736280974139,0.12549,204.31,204.2,14.42123676]
[1736280975651,0.12549,204.26,204.19,23.776884]
[1736280976758,0.12549,204.26,204.19,38.19812076]
[1736280976951,0.12549,204.26,204.18,2.86]
[1736280977125,0.12549,204.26,204.15,14.42123676]
[1736280978549,0.12549,204.26,204.14,17.28123676]
[1736280979054,0.12549,204.26,204.15,23.776884]
[1736280979252,0.12549,204.26,204.14,17.28123676]
[1736280979933,0.12549,204.26,204.16,14.54672676]
[1736280980242,6.5238,204.3,204.24,14.42123676]
[1736280980637,0.12549,204.31,204.24,14.42123676]
[1736280981846,0.12549,204.31,204.23,14.42123676]
[1736280982232,0.12549,204.31,204.22,14.42123676]
[1736280982429,0.12549,204.31,204.2,14.42123676]
[1736280982641,0.12549,204.31,204.18,0.12549]
[1736280982642,0.12549,204.31,204.19,14.42123676]
[1736280983154,0.12549,204.31,204.2,14.42123676]
[1736280983348,0.12549,204.31,204.21,14.42123676]
[1736280983752,0.12549,204.31,204.17,14.42123676]
[1736280984554,0.12549,204.31,204.18,14.42123676]
[1736280985065,0.12549,204.31,204.17,14.42123676]
[1736280986457,0.12549,204.31,204.16,41.05812076]
[1736280986765,0.12549,204.31,204.17,14.42123676]
[1736280987836,0.12549,204.31,204.16,41.05812076]
[1736280988146,0.12549,204.22,204.12,14.42123676]
[1736280988354,0.12549,204.22,204.11,14.42123676]
[1736280988558,0.12549,204.22,204.14,23.776884]
[1736280989045,0.12549,204.22,204.16,23.776884]
[1736280989245,1.5608,204.25,204.18,38.19812076]
[1736280989641,0.12549,204.24,204.16,14.42123676]
[1736280989840,0.12549,204.24,204.14,14.42123676]
[1736280990159,0.12549,204.22,204.13,14.42123676]
[1736280990560,0.12549,204.22,204.15,23.776884]
[1736280990855,0.12549,204.22,204.15,38.19812076]
[1736280992531,0.12549,204.22,204.11,0.85997278]
[1736280992532,1.5608,204.25,204.2,23.776884]
[1736280992736,1.5055,204.3,204.22,14.42123676]
[1736280993039,1.5055,204.3,204.26,14.42123676]
[1736280993245,6.4163,204.37,204.26,14.42123676]
[1736280993453,6.4163,204.37,204.28,23.776884]
[1736280993632,6.4163,204.37,204.26,14.42123676]
[1736280993836,0.12549,204.36,204.27,23.776884]
[1736280994054,0.12549,204.33,204.25,14.42123676]
[1736280994854,0.12549,204.33,204.26,14.42123676]
[1736280995162,0.12549,204.36,204.26,14.42123676]
[1736280995758,20.0,204.34,204.27,14.42123676]
[1736280995953,0.12549,204.36,204.27,14.42123676]
[1736280996360,0.12549,204.33,204.25,14.42123676]
[1736280996851,0.12549,204.33,204.23,14.42123676]
[1736280997035,0.12549,204.33,204.23,23.776884]
[1736280997239,0.12549,204.33,204.23,38.19812076]
[1736280997434,0.12549,204.33,204.21,17.26123676]
[1736280997655,0.12549,204.33,204.21,2.84]
[1736280998047,0.12549,204.31,204.21,2.84]
[1736280999265,0.12549,204.31,204.22,14.42123676]
[1736280999859,0.12549,204.31,204.21,17.26123676]
[1736281000865,0.12549,204.31,204.2,14.42123676]
[1736281001303,0.12549,204.31,204.21,14.42123676]
[1736281001655,0.12549,204.31,204.22,14.42123676]
[1736281001977,0.12549,204.31,204.19,24.63665499]
[1736281001978,0.12549,204.31,204.19,38.19812076]
[1736281002348,0.12549,204.27,204.18,17.26123676]
[1736281003490,1.585,204.32,204.19,14.42123676]
[1736281003839,0.12549,204.31,204.18,17.26123676]
[1736281004039,0.12549,204.27,204.15,2.86]
[1736281004864,0.12549,204.25,204.11,14.42123676]
[1736281005072,0.12549,204.21,204.09,14.42123676]
[1736281005280,0.12549,204.21,204.1,2.86]
[1736281005657,0.12549,204.21,204.1,17.28123676]
[1736281006057,0.12549,204.21,204.11,14.42123676]
[1736281006581,1.5225,204.26,204.12,38.19812076]
[1736281007084,0.12549,204.25,204.11,38.19812076]
[1736281007379,0.12549,204.21,204.11,14.42123676]
[1736281007688,0.12549,204.21,204.1,25.91844535]
[1736281009069,0.12549,204.21,204.11,23.05844535]
[1736281009281,0.12549,204.16,204.03,2.86]
[1736281009476,0.12549,204.16,204.04,23.05844535]
[1736281009698,0.12549,204.16,204.06,46.83532935]
[1736281010000,0.12549,204.16,204.06,23.05844535]
[1736281010282,0.12549,204.16,204.04,26.02393535]
[1736281010505,0.12549,204.16,204.04,2.84]
[1736281012356,0.12549,204.16,204.03,23.05844535]
[1736281012553,0.12549,204.14,204.03,23.05844535]
[1736281012773,0.12549,204.14,204.02,23.05844535]
[1736281012975,0.12549,204.14,204.01,25.89844535]
[1736281013367,0.12549,204.1,203.99,2.84]
[1736281014086,0.12549,204.1,204.0,23.05844535]
[1736281014767,0.12549,204.1,203.99,25.89844535]
[1736281016397,0.12549,204.08,203.94,23.05844535]
[1736281016706,20.0,204.05,203.92,23.05844535]
[1736281016890,0.12549,204.04,203.88,41.63601143]
[1736281017063,0.12549,204.04,203.94,23.05844535]
[1736281017263,1.6285,204.09,203.99,23.05844535]
[1736281017680,0.12549,204.08,203.98,23.05844535]
[1736281017898,0.12549,204.08,203.95,23.05844535]
[1736281017899,20.12549,204.08,203.95,23.05844535]
[1736281018280,20.12549,204.08,203.97,23.05844535]
[1736281020229,20.12549,204.08,203.98,23.05844535]
[1736281021124,20.12549,204.08,203.97,23.05844535]
[1736281021515,20.12549,204.08,203.95,23.05844535]
[1736281022198,20.12549,204.08,203.96,23.05844535]
[1736281023418,20.12549,204.08,203.95,46.83532935]
[1736281023794,0.12549,204.03,203.93,23.05844535]
[1736281024299,0.12549,204.03,203.94,23.05844535]
[1736281025119,0.12549,204.03,203.97,23.05844535]
[1736281025326,7.8914,204.07,203.99,23.05844535]
[1736281025510,7.8914,204.07,203.97,23.05844535]
[1736281025819,0.12549,204.03,203.93,23.05844535]
[1736281026025,0.12549,204.01,203.9,23.05844535]
[1736281026232,0.12549,204.01,203.91,23.05844535]
[1736281026799,0.12549,204.01,203.9,23.05844535]
[1736281027000,0.12549,204.01,203.89,23.05844535]
[1736281027224,0.12549,203.97,203.87,23.05844535]
[1736281027497,0.12549,203.97,203.87,25.89844535]
[1736281027897,0.12549,203.97,203.89,23.05844535]
[1736281028095,0.12549,203.97,203.91,23.05844535]
[1736281028393,0.12549,203.97,203.89,23.05844535]
[1736281029044,0.12549,203.97,203.9,23.05844535]